bitfinex/quotes_SOLUSD_20240702
["timestamp","ask_amount","ask_price","bid_price","bid_amount"]
[1719952222657,13.39,153.5,153.49,16.5344]
[1719952222831,13.39,153.5,153.49,36.5344]
[1719952223248,138.280634,153.54,153.49,36.5344]
[1719952223249,13.39,153.51,153.49,36.5344]
[1719952223446,13.39,153.51,153.5,20.34]
[1719952223939,13.39,153.51,153.5,0.34]
[1719952224631,138.280634,153.54,153.5,0.34]
[1719952224829,13.39,153.51,153.5,0.34]
[1719952226043,138.280634,153.54,153.5,0.34]
[1719952226254,13.39,153.51,153.5,0.34]
[1719952229688,13.39,153.51,153.5,1.64270272]
[1719952229953,13.39,153.51,153.46,100.0]
[1719952230151,13.39,153.47,153.46,100.0]
[1719952230540,13.39,153.48,153.46,100.0]
[1719952230945,13.39,153.48,153.47,20.0]
[1719952231253,13.39,153.48,153.47,20.34]
[1719952231468,138.280634,153.54,153.47,20.34]
[1719952231664,138.280634,153.54,153.48,0.34]
[1719952231665,13.39,153.52,153.48,0.34]
[1719952231830,138.280634,153.54,153.48,0.34]
[1719952232032,13.39,153.49,153.48,0.34]
[1719952232672,138.280634,153.54,153.48,0.34]
[1719952232841,13.39,153.49,153.48,0.34]
[1719952233254,53.56,153.52,153.48,0.34]
[1719952233467,138.280634,153.54,153.48,0.34]
[1719952233468,138.280634,153.54,153.48,101.6427486]
[1719952233662,13.39,153.52,153.49,20.0]
[1719952233869,13.39,153.52,153.5,0.34]
[1719952235370,13.39,153.51,153.5,1.64260235]
[1719952235573,138.280634,153.54,153.5,0.34]
[1719952235769,13.39,153.51,153.5,0.34]
[1719952236370,138.280634,153.54,153.5,0.34]
[1719952236570,13.39,153.51,153.5,0.34]
[1719952236869,138.280634,153.54,153.49,20.0]
[1719952237057,13.39,153.5,153.46,100.0]
[1719952237261,13.39,153.49,153.47,20.0]
[1719952238159,13.39,153.49,153.48,0.17]
[1719952238368,13.39,153.49,153.48,0.34]
[1719952239055,13.39,153.49,153.48,100.34]
[1719952239281,13.39,153.5,153.48,120.34]
[1719952239450,13.39,153.5,153.48,0.34]
[1719952239774,13.39,153.5,153.48,100.34]
[1719952241559,138.280634,153.54,153.48,100.34]
[1719952241757,13.39,153.53,153.48,100.34]
[1719952244357,138.280634,153.54,153.49,20.0]
[1719952244570,13.39,153.53,153.5,0.34]
[1719952244879,138.280634,153.54,153.5,0.34]
[1719952245176,13.39,153.53,153.5,0.34]
[1719952245552,138.280634,153.54,153.5,0.34]
[1719952245553,13.39,153.52,153.5,0.34]
[1719952249465,138.280634,153.54,153.5,0.34]
[1719952249466,13.39,153.51,153.5,0.34]
[1719952249671,13.39,153.51,153.47,20.0]
[1719952251180,13.39,153.5,153.47,20.0]
[1719952251382,13.39,153.5,153.48,0.34]
[1719952252567,13.39,153.51,153.48,0.34]
[1719952253288,13.39,153.5,153.48,0.34]
[1719952253778,138.280634,153.54,153.45,15.8187]
[1719952253981,6.5138,153.52,153.42,480.4]
[1719952254287,13.39,153.45,153.42,480.4]
[1719952254881,13.39,153.45,153.42,380.4]
[1719952255384,13.39,153.45,153.43,20.0]
[1719952256310,13.39,153.45,153.44,0.34]
[1719952259086,6.78464675,153.52,153.44,0.34]
[1719952259305,13.39,153.45,153.44,0.34]
[1719952260617,13.39,153.45,153.43,0.34]
[1719952261305,13.39,153.46,153.43,0.34]
[1719952261687,66.85844675,153.52,153.43,0.34]
[1719952261688,13.39,153.45,153.43,0.34]
[1719952262308,6.2179,153.47,153.42,380.4]
[1719952262500,13.39,153.43,153.37,41.208579]
[1719952262688,13.39,153.41,153.37,41.208579]
[1719952263291,13.39,153.4,153.37,15.1117]
[1719952263699,53.56,153.44,153.35,15.8701]
[1719952263700,13.39,153.39,153.35,15.8701]
[1719952263906,6.5168,153.45,153.33,115.7666]
[1719952264213,13.39,153.38,153.34,1.3024178]
[1719952264422,53.56,153.44,153.34,1.3024178]
[1719952264725,13.39,153.38,153.34,1.3024178]
[1719952265099,13.39,153.38,153.34,21.3024178]
[1719952265406,13.39,153.39,153.35,0.17]
[1719952265607,13.39,153.39,153.35,1.64224794]
[1719952265788,12.7339,153.47,153.35,100.34]
[1719952265994,13.39,153.41,153.36,33.39]
[1719952266200,13.39,153.41,153.37,0.34]
[1719952268606,13.39,153.4,153.37,0.34]
[1719952270303,13.3012407,153.46,153.37,0.34]
[1719952270612,13.39,153.4,153.37,0.34]
[1719952271813,6.5168,153.45,153.37,0.34]
[1719952272017,13.39,153.39,153.37,0.34]
[1719952272524,13.39,153.38,153.37,0.34]
[1719952274130,13.39,153.39,153.37,0.34]
[1719952274310,53.56,153.44,153.37,0.34]
[1719952274507,13.39,153.39,153.37,0.34]
[1719952274928,53.56,153.44,153.37,0.34]
[1719952275236,13.39,153.39,153.38,0.17]
[1719952275726,13.39,153.39,153.36,0.34]
[1719952275937,13.39,153.39,153.36,0.17]
[1719952276105,13.39,153.39,153.35,0.34]
[1719952277518,13.39,153.38,153.35,0.34]
[1719952278436,76.1334,153.44,153.35,0.34]
[1719952278437,22.5734,153.44,153.35,0.34]
[1719952278640,13.39,153.39,153.35,0.34]
[1719952281133,13.39,153.38,153.35,0.34]
[1719952281825,13.39,153.38,153.34,20.0]
[1719952282031,13.39,153.36,153.34,20.0]
[1719952282230,13.39,153.36,153.33,15.7666]
[1719952283230,13.39,153.36,153.34,0.17]
[1719952283448,13.39,153.37,153.34,0.34]
[1719952284343,6.5684,153.42,153.34,0.34]
[1719952284639,13.39,153.37,153.34,0.34]
[1719952286244,13.39,153.36,153.34,0.34]
[1719952287258,13.39,153.35,153.34,0.34]
[1719952287419,6.5186,153.41,153.33,0.34]
[1719952287624,13.39,153.35,153.33,0.34]
[1719952288015,13.39,153.35,153.32,0.34]
[1719952289342,6.5186,153.41,153.32,0.34]
[1719952289653,13.39,153.35,153.32,0.34]
[1719952290541,16.2073,153.37,153.27,19.3907]
[1719952290542,13.39,153.33,153.27,19.3907]
[1719952290743,13.39,153.32,153.27,19.3907]
[1719952291046,13.39,153.31,153.26,29.2559]
[1719952292523,13.39,153.31,153.27,20.0]
[1719952292950,13.39,153.3,153.26,15.8659]
[1719952293250,13.39,153.29,153.27,0.34]
[1719952293646,13.39,153.28,153.27,0.34]
[1719952293826,13.39,153.28,153.26,15.8659]
[1719952294026,13.39,153.28,153.23,119.9896]
[1719952294228,13.39,153.28,153.23,6.5996]
[1719952294456,13.39,153.27,153.22,28.6967]
[1719952295326,13.39,153.27,153.2,5.65524828]
[1719952295327,13.39,153.25,153.19,132.217461]
[1719952295526,13.39,153.24,153.19,145.607461]
[1719952295753,13.39,153.24,153.19,126.126561]
[1719952295968,13.39,153.24,153.19,13.39]
[1719952296162,13.39,153.24,153.18,16.0784]
[1719952296329,13.39,153.23,153.18,29.4684]
[1719952296532,13.39,153.28,153.18,16.0784]
[1719952296743,13.39,153.22,153.18,16.0784]
[1719952297341,13.39,153.22,153.19,1.30394782]
[1719952297544,13.39,153.23,153.19,1.30394782]
[1719952297730,13.39,153.21,153.16,20.0]
[1719952297931,13.39,153.21,153.16,33.39]
[1719952298429,13.39,153.21,153.17,13.39]
[1719952298635,6.3163,153.26,153.18,33.39]
[1719952298838,13.39,153.23,153.18,33.39]
[1719952299035,6.3163,153.26,153.18,20.0]
[1719952299036,13.39,153.22,153.18,20.0]
[1719952299534,13.39,153.21,153.18,20.0]
[1719952299731,6.3163,153.26,153.19,0.34]
[1719952299925,13.39,153.22,153.18,0.34]
[1719952300855,13.39,153.23,153.18,13.73]
[1719952301160,6.3163,153.26,153.18,13.73]
[1719952301462,13.39,153.23,153.18,13.73]
[1719952303051,6.3882,153.3,153.2,13.39]
[1719952303260,13.39,153.26,153.21,13.73]
[1719952304353,13.39,153.27,153.22,13.39]
[1719952304563,13.39,153.27,153.23,0.34]
[1719952304850,13.39,153.28,153.23,13.73]
[1719952305160,13.39,153.27,153.23,0.34]
[1719952305362,13.39,153.28,153.23,13.73]
[1719952305729,6.77736677,153.31,153.23,13.73]
[1719952305948,13.39,153.28,153.23,13.73]
[1719952306561,22.3159,153.33,153.24,100.0]
[1719952306736,13.39,153.31,153.26,13.39]
[1719952306936,13.39,153.31,153.27,0.34]
[1719952307755,22.3159,153.33,153.27,0.34]
[1719952308054,66.85750296,153.36,153.27,13.73]
[1719952308055,13.39,153.32,153.27,13.73]
[1719952308455,13.39,153.32,153.27,0.34]
[1719952308660,13.39,153.32,153.27,13.73]
[1719952309252,66.85770296,153.36,153.27,0.34]
[1719952309454,13.39,153.31,153.27,0.34]
[1719952311152,13.39,153.31,153.26,20.34]
[1719952311341,13.39,153.31,153.28,0.17]
[1719952311538,13.39,153.31,153.26,20.34]
[1719952311754,66.85760296,153.36,153.26,20.34]
[1719952312037,13.39,153.32,153.27,13.39]
[1719952312237,13.39,153.32,153.28,0.34]
[1719952312537,13.39,153.31,153.28,0.34]
[1719952312734,13.39,153.31,153.28,0.17]
[1719952312965,13.39,153.31,153.27,0.34]
[1719952313167,13.39,153.32,153.27,13.73]
[1719952313464,6.77690296,153.36,153.27,13.73]
[1719952313759,13.39,153.32,153.27,13.73]
[1719952313955,13.39,153.32,153.27,0.34]
[1719952314153,13.39,153.31,153.27,0.34]
[1719952314958,13.39,153.3,153.26,20.0]
[1719952315160,13.39,153.3,153.24,13.39]
[1719952315341,13.39,153.29,153.25,20.0]
[1719952316265,13.39,153.29,153.26,0.34]
[1719952316653,13.39,153.29,153.25,20.34]
[1719952316855,13.39,153.29,153.27,0.17]
[1719952317056,13.39,153.29,153.25,20.34]
[1719952317255,13.39,153.27,153.25,0.34]
[1719952317455,13.39,153.27,153.22,13.39]
[1719952318167,13.39,153.26,153.21,29.5926]
[1719952318547,13.39,153.26,153.22,20.0]
[1719952319344,13.39,153.26,153.23,0.34]
[1719952319663,13.39,153.27,153.23,0.34]
[1719952321375,22.2504,153.31,153.23,0.17]
[1719952321691,13.39,153.25,153.21,16.2026]
[1719952322870,13.39,153.25,153.22,0.34]
[1719952323053,13.39,153.26,153.22,0.34]
[1719952323971,28.7732,153.31,153.22,0.34]
[1719952324268,22.2504,153.31,153.22,13.73]
[1719952324456,13.39,153.27,153.22,13.73]
[1719952327071,13.39,153.27,153.22,0.34]
[1719952327304,13.39,153.26,153.22,0.34]
[1719952327472,13.39,153.27,153.22,13.73]
[1719952327656,13.39,153.27,153.22,0.34]
[1719952327864,6.77745171,153.33,153.22,0.34]
[1719952327865,6.77745171,153.33,153.22,120.34]
[1719952328168,22.3509,153.35,153.22,120.34]
[1719952328169,22.3509,153.35,153.27,13.39]
[1719952328373,22.3509,153.35,153.28,0.34]
[1719952328374,13.39,153.33,153.28,0.34]
[1719952329574,13.39,153.31,153.28,0.34]
[1719952329965,13.39,153.31,153.27,0.34]
[1719952330462,6.77099549,153.34,153.27,0.34]
[1719952330663,13.39,153.31,153.27,0.34]
[1719952332289,6.77099549,153.34,153.27,0.34]
[1719952332579,13.39,153.31,153.27,0.34]
[1719952332781,6.77099549,153.34,153.27,13.73]
[1719952332987,13.39,153.32,153.27,13.73]
[1719952335491,13.39,153.32,153.27,0.34]
[1719952335681,13.39,153.31,153.27,0.34]
[1719952335881,13.39,153.31,153.28,0.17]
[1719952336180,13.39,153.31,153.26,33.73]
[1719952336769,6.77099549,153.34,153.26,33.73]
[1719952336984,13.39,153.31,153.26,33.73]
[1719952339988,6.76993648,153.32,153.3,13.39]
[1719952340157,22.919,153.39,153.31,1.02388154]
[1719952340357,6.77151917,153.37,153.31,14.41388154]
[1719952340582,20.16151917,153.37,153.32,14.36759982]
[1719952340791,20.16151917,153.37,153.33,0.34]
[1719952341385,13.39,153.36,153.33,0.34]
[1719952341561,13.39,153.36,153.32,0.34]
[1719952342393,6.77151917,153.37,153.32,0.34]
[1719952342575,20.16151917,153.37,153.32,13.73]
[1719952342772,6.77151917,153.37,153.32,13.73]
[1719952342984,13.39,153.37,153.32,13.73]
[1719952343183,6.77154522,153.38,153.33,15.0787]
[1719952343483,13.39,153.38,153.34,0.34]
[1719952344587,13.29015593,153.39,153.34,0.34]
[1719952344788,13.39,153.35,153.34,0.34]
[1719952346072,6.77085593,153.39,153.34,0.34]
[1719952346278,13.39,153.37,153.35,0.34]
[1719952346479,13.39,153.36,153.3,20.0]
[1719952346679,13.39,153.33,153.3,20.0]
[1719952346889,13.39,153.33,153.29,16.2912]
[1719952347280,13.39,153.32,153.29,16.2912]
[1719952348799,13.39,153.32,153.3,0.34]
[1719952350077,41.2911,153.33,153.21,16.4016]
[1719952350282,13.39,153.24,153.21,16.4016]
[1719952351385,13.39,153.23,153.21,16.4016]
[1719952351584,13.39,153.22,153.21,16.4016]
[1719952352695,13.39,153.22,153.21,16.5716]
[1719952352901,13.39,153.22,153.21,16.7416]
[1719952353802,6.5244,153.27,153.21,16.7416]
[1719952354009,6.77056429,153.25,153.22,0.34]
[1719952355112,6.523,153.31,153.22,0.34]
[1719952355408,6.76907735,153.29,153.22,0.34]
[1719952355984,13.29297735,153.29,153.22,0.34]
[1719952356383,6.76907735,153.29,153.22,0.34]
[1719952356623,13.29287735,153.29,153.22,0.34]
[1719952357311,33.59907735,153.29,153.22,0.34]
[1719952357695,6.5249,153.26,153.22,0.34]
[1719952358304,33.59907735,153.29,153.22,0.34]
[1719952358506,6.5241,153.28,153.22,0.34]
[1719952358814,40.12267735,153.29,153.22,0.34]
[1719952359396,33.59907735,153.29,153.22,0.34]
[1719952359612,40.12267735,153.29,153.22,0.34]
[1719952360010,33.59907735,153.29,153.22,0.34]
[1719952360315,6.76907735,153.29,153.22,0.34]
[1719952360512,13.29257735,153.29,153.21,0.34]
[1719952361421,6.76907735,153.29,153.21,0.34]
[1719952361605,6.76907735,153.29,153.2,0.34]
[1719952361799,13.29267735,153.29,153.2,0.34]
[1719952361992,6.76907735,153.29,153.2,0.34]
[1719952362190,6.76907735,153.29,153.2,100.34]
[1719952362419,6.76907735,153.29,153.22,100.0]
[1719952362720,6.76907735,153.29,153.21,15.4008]
[1719952362721,6.76907735,153.29,153.23,0.84977461]
[1719952362899,6.76907735,153.29,153.23,1.64491966]
[1719952363097,6.76907735,153.29,153.24,1.3048345]
[1719952363317,6.76907735,153.29,153.25,0.34]
[1719952366621,6.3058,153.33,153.25,0.34]
[1719952366819,6.7695247,153.32,153.25,0.34]
[1719952367004,6.7695247,153.32,153.24,0.34]
[1719952367533,6.7695247,153.32,153.24,100.34]
[1719952368622,6.7695247,153.32,153.25,20.38155975]
[1719952368835,6.7695247,153.32,153.26,0.34]
[1719952372099,6.7695247,153.32,153.26,1.61610123]
[1719952374525,6.7695247,153.32,153.27,15.5002]
[1719952374733,33.351,153.35,153.28,0.34]
[1719952374923,6.7707198,153.34,153.28,0.34]
[1719952376240,13.2921198,153.34,153.28,0.34]
[1719952377041,6.7707198,153.34,153.28,0.34]
[1719952377511,33.3511,153.35,153.28,0.34]
[1719952377712,13.4,153.31,153.28,0.34]
[1719952378627,60.1206,153.36,153.28,0.34]
[1719952378924,13.4,153.32,153.28,0.34]
[1719952379711,28.7947,153.37,153.28,0.34]
[1719952379920,13.4,153.32,153.28,0.34]
[1719952381031,13.4,153.31,153.27,15.5002]
[1719952381234,13.4,153.3,153.27,15.5002]
[1719952381432,6.77087344,153.34,153.27,15.5002]
[1719952381641,13.4,153.3,153.27,15.5002]
[1719952382341,13.4,153.3,153.28,0.34]
[1719952384530,6.5212,153.35,153.28,0.34]
[1719952384840,13.4,153.3,153.28,0.34]
[1719952385844,13.4,153.29,153.28,0.34]
[1719952386419,6.5211,153.35,153.28,0.34]
[1719952386615,13.4,153.29,153.28,0.34]
[1719952387231,13.4,153.29,153.24,20.0]
[1719952387549,13.4,153.25,153.23,15.759]
[1719952388222,13.4,153.24,153.23,15.759]
[1719952388421,13.4,153.24,153.19,136.0064]
[1719952389023,13.4,153.24,153.19,36.0064]
[1719952389357,13.4,153.24,153.19,19.03446111]
[1719952389556,13.4,153.24,153.2,20.0]
[1719952390020,53.6,153.28,153.2,20.0]
[1719952390223,53.6,153.28,153.2,21.30520031]
[1719952390450,53.6,153.28,153.21,0.34]
[1719952391864,13.29534595,153.3,153.21,0.34]
[1719952392027,6.0176,153.31,153.22,13.4]
[1719952392229,13.4,153.28,153.23,13.74]
[1719952392831,17.09812397,153.35,153.25,15.2598]
[1719952393049,13.4,153.3,153.26,0.34]
[1719952393329,13.4,153.29,153.26,0.34]
[1719952394154,13.4,153.3,153.26,0.34]
[1719952396356,23.61922397,153.35,153.26,0.34]
[1719952396555,13.4,153.3,153.26,0.34]
[1719952400651,23.61922397,153.35,153.26,0.34]
[1719952400960,17.09812397,153.35,153.26,20.34]
[1719952401136,6.7718582,153.35,153.27,13.4]
[1719952401338,13.4,153.32,153.28,0.34]
[1719952402391,13.4,153.31,153.29,0.17]
[1719952402555,13.4,153.31,153.27,0.34]
[1719952405465,6.77035341,153.33,153.27,0.34]
[1719952405646,13.4,153.31,153.27,0.34]
[1719952411551,6.77035341,153.33,153.27,0.34]
[1719952411742,6.77035341,153.33,153.29,100.0]
[1719952411944,22.3363,153.41,153.31,13.4]
[1719952411945,13.4,153.36,153.31,13.4]
[1719952412141,13.4,153.36,153.32,0.34]
[1719952412345,28.8549,153.41,153.32,0.34]
[1719952412641,13.4,153.36,153.32,0.34]
[1719952413055,22.3363,153.41,153.32,0.34]
[1719952413255,22.3363,153.41,153.32,33.74]
[1719952413446,13.4,153.37,153.32,33.74]
[1719952413646,6.518,153.43,153.32,20.34]
[1719952413647,13.4,153.34,153.32,20.34]
[1719952413852,13.4,153.34,153.32,0.34]
[1719952414742,6.6447,153.39,153.32,0.34]
[1719952414978,13.4,153.36,153.31,20.34]
[1719952415461,13.4,153.36,153.31,33.74]
[1719952416045,13.4,153.35,153.31,20.34]
[1719952416241,6.6447,153.39,153.31,20.34]
[1719952416242,6.5197,153.38,153.31,20.0]
[1719952416461,13.4,153.33,153.28,33.4]
[1719952416646,13.4,153.32,153.28,20.0]
[1719952417567,13.4,153.32,153.29,0.34]
[1719952422173,15.6222,153.38,153.29,0.34]
[1719952422488,13.4,153.33,153.29,0.34]
[1719952425675,13.4,153.32,153.29,0.34]
[1719952428267,13.4,153.33,153.29,0.34]
[1719952428454,13.4,153.32,153.29,0.34]
[1719952432177,13.4,153.3,153.29,0.34]
[1719952432360,6.4187,153.33,153.23,15.1885]
[1719952432565,13.4,153.27,153.23,15.1885]
[1719952433362,13.4,153.28,153.23,28.5885]
[1719952433777,13.4,153.28,153.24,20.34]
[1719952435377,6.4187,153.33,153.25,13.4]
[1719952435378,13.4,153.3,153.25,13.4]
[1719952435677,13.4,153.3,153.26,0.34]
[1719952437882,6.4187,153.33,153.26,0.34]
[1719952438184,13.4,153.3,153.26,0.34]
[1719952439260,6.4187,153.33,153.26,0.34]
[1719952439261,13.4,153.31,153.26,13.74]
[1719952442490,13.4,153.31,153.27,0.48126147]
[1719952442665,13.4,153.31,153.28,0.34]
[1719952442868,13.4,153.29,153.28,0.34]
[1719952455113,6.4757,153.33,153.28,0.34]
[1719952455303,13.4,153.29,153.28,0.34]
[1719952460186,12.9979,153.33,153.28,0.34]
[1719952460508,13.4,153.29,153.28,0.34]
[1719952462208,12.9979,153.33,153.28,0.34]
[1719952462429,13.4,153.29,153.28,0.34]
[1719952463701,13.4,153.29,153.23,15.1885]
[1719952463895,13.4,153.26,153.23,15.1885]
[1719952464401,13.4,153.25,153.23,15.1885]
[1719952465018,13.4,153.25,153.2,113.4]
[1719952465204,13.4,153.25,153.21,20.34]
[1719952467811,13.4,153.25,153.21,20.0]
[1719952468105,13.4,153.25,153.2,33.4]
[1719952468488,13.4,153.24,153.2,20.0]
[1719952468681,13.4,153.23,153.2,20.0]
[1719952468883,13.4,153.23,153.19,15.9573]
[1719952469301,13.4,153.23,153.2,0.34]
[1719952470302,6.5209,153.28,153.2,0.34]
[1719952470507,13.4,153.23,153.2,0.34]
[1719952470683,13.4,153.23,153.21,0.17]
[1719952470891,13.4,153.23,153.19,0.34]
[1719952471107,13.4,153.24,153.19,13.74]
[1719952471702,13.4,153.23,153.19,0.34]
[1719952475292,13.4,153.25,153.2,113.4]
[1719952475495,13.4,153.25,153.21,0.34]
[1719952477011,13.4,153.24,153.21,0.34]
[1719952477309,13.4,153.24,153.22,0.34]
[1719952477501,13.4,153.24,153.2,0.34]
[1719952479096,13.4,153.24,153.2,0.17]
[1719952479298,13.4,153.23,153.19,0.17]
[1719952480407,13.4,153.23,153.19,0.34]
[1719952481029,60.1209,153.28,153.18,20.0]
[1719952481193,13.4,153.2,153.17,15.9692]
[1719952481810,13.4,153.21,153.17,15.9692]
[1719952482317,13.4,153.21,153.18,0.34]
[1719952489019,6.5249,153.26,153.18,0.34]
[1719952489323,13.4,153.21,153.18,0.34]
[1719952490518,13.4,153.22,153.18,0.34]
[1719952492114,6.77821387,153.27,153.18,0.34]
[1719952492306,13.4,153.22,153.18,0.34]
[1719952492514,13.4,153.23,153.18,13.74]
[1719952498027,13.30271387,153.27,153.18,13.74]
[1719952498232,13.4,153.23,153.18,13.74]
[1719952499402,6.77821387,153.27,153.2,100.0]
[1719952499624,13.4,153.26,153.21,33.74]
[1719952500230,13.4,153.25,153.21,20.34]
[1719952501924,6.77634888,153.3,153.21,120.34]
[1719952502128,20.17634888,153.3,153.22,16.0997]
[1719952502441,13.4,153.29,153.24,13.4]
[1719952502628,13.4,153.29,153.25,0.34]
[1719952502834,6.5531,153.32,153.25,1.64484552]
[1719952503143,13.4,153.29,153.25,1.64484552]
[1719952503316,13.4,153.3,153.25,13.74]
[1719952506818,13.4,153.29,153.25,13.74]
[1719952507019,13.4,153.29,153.25,0.34]
[1719952508136,6.77710075,153.33,153.25,0.34]
[1719952508435,13.4,153.32,153.27,13.4]
[1719952508615,13.4,153.32,153.28,0.34]
[1719952509011,13.4,153.33,153.28,13.74]
[1719952509335,13.4,153.32,153.28,0.34]
[1719952509822,6.5991,153.35,153.28,0.34]
[1719952510017,13.4,153.32,153.28,0.34]
[1719952511137,6.5991,153.35,153.28,0.34]
[1719952511330,21.88373439,153.36,153.28,13.74]
[1719952511331,15.1056,153.36,153.28,13.74]
[1719952511729,13.4,153.34,153.28,13.74]
[1719952512128,13.4,153.34,153.29,13.4]
[1719952512332,13.4,153.34,153.3,0.34]
[1719952514993,6.5199,153.38,153.3,0.34]
[1719952515249,13.4,153.35,153.3,0.34]
[1719952515563,13.41629785,153.39,153.31,13.4]
[1719952515761,13.41629785,153.39,153.3,120.34]
[1719952515762,13.41629785,153.39,153.32,0.34]
[1719952515925,13.4,153.38,153.33,13.4]
[1719952516123,13.4,153.38,153.34,0.34]
[1719952516839,6.77739785,153.39,153.34,0.34]
[1719952517046,13.4,153.38,153.34,0.34]
[1719952518055,13.29291962,153.41,153.34,0.34]
[1719952518349,13.4,153.38,153.34,0.34]
[1719952518565,6.77441962,153.41,153.34,0.34]
[1719952518775,6.77441962,153.41,153.35,0.17]
[1719952518776,13.4,153.39,153.35,0.17]
[1719952518968,6.77441962,153.41,153.35,0.34]
[1719952519180,13.4,153.39,153.35,0.34]
[1719952519360,6.77441962,153.41,153.35,13.74]
[1719952519557,6.1607,153.43,153.37,13.4]
[1719952519885,13.4,153.42,153.38,0.34]
[1719952520462,13.4,153.41,153.38,0.34]
[1719952520662,13.4,153.41,153.37,0.34]
[1719952521045,6.77334446,153.44,153.37,13.74]
[1719952521264,6.77334446,153.44,153.38,116.4827]
[1719952521544,6.77334446,153.44,153.4,13.4]
[1719952521853,6.77334446,153.44,153.41,0.34]
[1719952522368,6.1607,153.47,153.41,13.74]
[1719952522570,13.4,153.45,153.41,0.34]
[1719952523139,6.5151,153.49,153.41,0.34]
[1719952523484,13.4,153.46,153.41,13.74]
[1719952530465,6.5151,153.49,153.42,13.4]
[1719952530466,13.4,153.47,153.42,13.4]
[1719952530653,13.4,153.46,153.43,0.34]
[1719952530860,13.4,153.46,153.44,0.17]
[1719952531066,13.4,153.46,153.43,0.17]
[1719952531264,13.4,153.46,153.42,0.17]
[1719952532849,49.9,153.5,153.42,0.17]
[1719952532850,49.9,153.5,153.46,100.0]
[1719952533048,49.9,153.5,153.47,0.34]
[1719952533358,63.3,153.5,153.47,0.34]
[1719952533869,49.9,153.5,153.47,0.34]
[1719952536666,49.9,153.5,153.47,13.74]
[1719952536863,49.9,153.5,153.48,13.4]
[1719952537062,49.9,153.5,153.49,0.34]
[1719952538164,49.9,153.5,153.48,0.34]
[1719952538365,49.9,153.5,153.49,0.34]
[1719952538562,49.9,153.5,153.49,0.17]
[1719952539190,63.3,153.5,153.49,0.17]
[1719952539357,63.3,153.5,153.44,100.0]